bitfinex/quotes_SOLUSD_20250310
["timestamp","ask_amount","ask_price","bid_price","bid_amount"]
[1741637206182,12.28,120.19,120.16,47.52042198]
[1741637206359,12.28,120.19,120.17,71.54793463]
[1741637206563,12.28,120.19,120.17,209.04793463]
[1741637206783,220.16,120.2,120.18,71.54793463]
[1741637207168,220.16,120.2,120.19,79.86803463]
[1741637208370,220.16,120.2,120.19,71.54793463]
[1741637208769,220.16,120.2,120.18,217.36853463]
[1741637208970,220.16,120.2,120.18,137.5]
[1741637209383,227.6475,120.2,120.18,137.5]
[1741637210183,0.18229977,120.19,120.18,137.5]
[1741637210374,0.18229977,120.19,120.15,79.87063463]
[1741637210375,90.52204483,120.19,120.15,137.5]
[1741637210570,71.54793463,120.18,120.15,137.5]
[1741637210765,12.26,120.17,120.15,137.5]
[1741637210991,18.79181043,120.16,120.13,137.5]
[1741637211188,79.03853463,120.15,120.12,137.5001]
[1741637211389,90.33974506,120.14,120.12,0.0001]
[1741637211591,90.48190663,120.13,120.12,0.0001]
[1741637212801,97.22406545,120.13,120.12,0.0001]
[1741637212983,168.77200008,120.13,120.12,0.0001]
[1741637213186,104.71586545,120.13,120.12,0.0001]
[1741637214682,176.26380008,120.13,120.12,0.0001]
[1741637215407,0.28432314,120.11,120.1,0.0001]
[1741637215608,323.26190663,120.11,120.1,0.0001]
[1741637217485,330.75500663,120.11,120.1,0.0001]
[1741637218004,20.28432314,120.07,120.02,137.563]
[1741637218188,0.14216157,120.04,120.02,0.063]
[1741637218508,12.26,120.03,120.02,137.563]
[1741637219004,12.26,120.03,120.02,0.063]
[1741637220587,38.54991043,120.03,120.02,0.063]
[1741637220788,110.09784506,120.03,120.02,0.063]
[1741637221009,110.24000663,120.03,120.02,0.063]
[1741637221182,31.05181043,120.03,120.02,0.063]
[1741637221691,12.26,120.03,120.02,0.063]
[1741637221902,18.64964886,120.07,120.02,209.11093463]
[1741637221903,30.90964886,120.07,120.02,209.11093463]
[1741637222224,38.40534886,120.07,120.02,209.11093463]
[1741637222401,38.79181043,120.03,120.02,0.063]
[1741637222791,20.0,120.03,120.02,0.063]
[1741637223100,30.90964886,120.07,120.02,209.11093463]
[1741637223307,30.90964886,120.07,120.03,71.54793463]
[1741637223899,30.90964886,120.07,120.03,79.87883463]
[1741637224203,12.26,120.07,120.04,71.54793463]
[1741637224405,12.26,120.07,120.03,145.8309]
[1741637224406,12.26,120.07,120.03,217.37913463]
[1741637224625,20.0,120.07,120.05,71.54793463]
[1741637224785,13.36929377,120.1,120.06,71.54793463]
[1741637224985,13.43229377,120.1,120.09,71.54793463]
[1741637225293,0.063,120.1,120.09,209.04793463]
[1741637225498,0.063,120.1,120.09,137.5]
[1741637226003,0.063,120.1,120.09,217.37493463]
[1741637227298,0.063,120.1,120.09,145.827]
[1741637227614,0.063,120.1,120.09,209.04793463]
[1741637227788,0.063,120.1,120.09,217.37493463]
[1741637228284,220.52,120.11,120.1,208.98493463]
[1741637229411,220.52,120.11,120.1,137.437]
[1741637229985,220.70211653,120.11,120.1,137.437]
[1741637230687,246.98702696,120.11,120.1,137.437]
[1741637230913,318.53496159,120.11,120.1,137.437]
[1741637231402,220.70211653,120.11,120.1,137.437]
[1741637231590,228.19521653,120.11,120.1,137.437]
[1741637232122,220.70211653,120.11,120.1,137.437]
[1741637232416,220.8442781,120.11,120.07,137.437]
[1741637232614,220.8442781,120.11,120.07,145.7654]
[1741637232818,220.8442781,120.11,120.07,217.31333463]
[1741637233320,228.3373781,120.11,120.07,217.31333463]
[1741637233617,228.3373781,120.11,120.07,137.437]
[1741637233817,299.88531273,120.11,120.07,137.437]
[1741637234028,228.3373781,120.11,120.07,137.437]
[1741637234193,228.3373781,120.11,120.07,145.7654]
[1741637234512,220.8442781,120.11,120.07,145.7653]
[1741637234707,220.8442781,120.11,120.07,137.437]
[1741637235017,228.3373781,120.11,120.07,137.437]
[1741637235600,18.79181043,120.1,120.07,137.437]
[1741637236187,26.28581043,120.1,120.07,137.437]
[1741637236407,18.79181043,120.1,120.07,137.437]
[1741637237204,220.70211653,120.11,120.08,47.78290534]
[1741637237795,220.70211653,120.11,120.07,193.54820534]
[1741637237996,220.70211653,120.11,120.08,47.78290534]
[1741637238190,220.70211653,120.11,120.09,56.10930534]
[1741637238406,220.70211653,120.11,120.07,158.2581]
[1741637238407,220.70211653,120.11,120.07,137.437]
[1741637238600,275.97872187,120.11,120.07,137.437]
[1741637240631,66.57471577,120.1,120.07,137.437]
[1741637240803,18.79181043,120.1,120.07,137.437]
[1741637241001,20.0,120.08,120.07,137.437]
[1741637241216,20.0,120.06,120.02,275.51460534]
[1741637241530,47.78290534,120.08,120.02,275.51460534]
[1741637241729,47.78290534,120.08,120.02,227.7317]
[1741637241901,18.79181043,120.07,120.02,275.51460534]
[1741637242098,12.24,120.06,120.02,219.4]
[1741637242629,12.24,120.06,120.02,267.18290534]
[1741637242932,12.24,120.06,120.02,275.51470534]
[1741637243305,12.24,120.06,120.03,47.78290534]
[1741637243516,12.24,120.06,120.02,275.51470534]
[1741637244435,12.24,120.06,120.04,8.3305]
[1741637244601,12.24,120.06,120.04,56.11340534]
[1741637245226,25.4677088,120.1,120.06,137.437]
[1741637245423,32.9615088,120.1,120.06,137.437]
[1741637245615,18.79181043,120.09,120.06,137.437]
[1741637245799,67.49670534,120.1,120.06,137.437]
[1741637246004,18.64964886,120.09,120.06,137.437]
[1741637246508,47.78290534,120.08,120.06,137.437]
[1741637246712,18.64964886,120.09,120.06,137.437]
[1741637246933,18.64964886,120.09,120.06,145.7659]
[1741637247240,18.64964886,120.09,120.06,137.437]
[1741637247601,26.14404886,120.09,120.06,137.437]
[1741637248297,18.64964886,120.09,120.06,185.21990534]
[1741637248716,18.64964886,120.09,120.06,193.54880534]
[1741637248923,18.64964886,120.09,120.06,185.21990534]
[1741637249150,19.85606157,120.1,120.06,185.21990534]
[1741637249335,18.64964886,120.09,120.06,185.21990534]
[1741637249662,66.4325542,120.09,120.06,137.437]
[1741637250138,0.17635801,120.07,120.06,137.467]
[1741637250452,0.17635801,120.07,120.06,0.03]
[1741637250815,0.17635801,120.07,120.06,47.81290534]
[1741637251017,0.17635801,120.07,120.06,0.03]
[1741637251237,18.82600687,120.07,120.06,0.03]
[1741637251442,0.17635801,120.07,120.06,0.03]
[1741637251746,0.17635801,120.07,120.06,47.81290534]
[1741637252042,0.17635801,120.07,120.06,185.24990534]
[1741637252274,0.17635801,120.07,120.06,233.03281068]
[1741637252449,0.17469054,120.09,120.08,137.08132474]
[1741637252617,0.17469054,120.09,120.08,184.86423008]
[1741637253318,0.17469054,120.09,120.08,137.08132474]
[1741637253840,0.17469054,120.09,120.08,184.86423008]
[1741637254421,0.17469054,120.09,120.08,193.19193008]
[1741637256036,0.15032081,120.1,120.09,136.9066342]
[1741637256239,0.15032081,120.1,120.09,184.68953954]
[1741637256425,0.15032081,120.1,120.09,203.62351154]
[1741637256650,2.081e-05,120.1,120.09,218.72543272]
[1741637256846,0.22051091,120.11,120.1,18.64964886]
[1741637257030,0.22051091,120.11,120.1,67.68090292]
[1741637257226,1.091e-05,120.11,120.1,149.58090292]
[1741637257442,1.091e-05,120.11,120.1,129.96722848]
[1741637257825,1.091e-05,120.11,120.1,129.68290534]
[1741637258537,1.091e-05,120.11,120.1,90.2263]
[1741637258743,1.091e-05,120.11,120.1,138.00920534]
[1741637259956,1.091e-05,120.11,120.1,139.54203277]
[1741637260853,1.091e-05,120.11,120.1,138.00920534]
[1741637261154,1.091e-05,120.11,120.1,129.68290534]
[1741637261461,1.091e-05,120.11,120.1,136.9066342]
[1741637262958,1.091e-05,120.11,120.1,193.01583954]
[1741637265429,0.17522062,120.13,120.12,136.72872357]
[1741637265634,0.17522062,120.13,120.12,184.51162891]
[1741637265829,0.17522062,120.13,120.12,232.29453425]
[1741637266158,2.062e-05,120.13,120.12,232.29453425]
[1741637266335,0.15480092,120.15,120.13,20.496872]
[1741637266531,220.603,120.2,120.15,20.933972]
[1741637266851,0.063,120.2,120.19,56.10300534]
[1741637268444,0.0001,120.2,120.19,75.03697734]
[1741637268649,0.063,120.23,120.22,20.0]
[1741637268962,0.063,120.23,120.22,76.38522848]
[1741637269335,0.063,120.23,120.22,158.28522848]
[1741637269957,0.063,120.23,120.22,129.68290534]
[1741637270162,0.2133924,120.23,120.22,138.00090534]
[1741637270636,0.2133924,120.23,120.22,184.51162891]
[1741637270839,0.2133924,120.23,120.22,136.72872357]
[1741637271052,0.2133924,120.23,120.22,184.51162891]
[1741637271241,0.22779037,120.24,120.23,136.51533117]
[1741637271446,0.22779037,120.24,120.23,184.29823651]
[1741637272543,0.22779037,120.24,120.23,136.51533117]
[1741637273352,0.22779037,120.24,120.23,192.61553651]
[1741637276146,9.037e-05,120.24,120.23,192.61553651]
[1741637277054,0.17455633,120.27,120.26,136.18434578]
[1741637277252,0.17455633,120.27,120.26,192.28255112]
[1741637279541,0.17455633,120.27,120.26,198.35425112]
[1741637279841,1.878e-05,120.29,120.28,38.64964886]
[1741637280048,1.878e-05,120.29,120.28,135.46184821]
[1741637280248,18.64964886,120.37,120.29,95.85013382]
[1741637280455,18.64964886,120.37,120.33,47.78290534]
[1741637280768,66.4325542,120.37,120.33,136.18434578]
[1741637281466,220.34,120.38,120.34,47.78290534]
[1741637281762,220.34,120.38,120.35,47.78290534]
[1741637281965,220.34,120.38,120.34,47.78290534]
[1741637282160,220.34,120.38,120.35,47.78290534]
[1741637282367,220.34,120.38,120.37,47.78290534]
[1741637282742,20.1942,120.44,120.37,184.25157426]
[1741637282743,49.29520534,120.44,120.37,184.25157426]
[1741637282943,220.28,120.45,120.41,47.78290534]
[1741637283143,227.7522,120.45,120.41,47.78290534]
[1741637283352,227.7522,120.45,120.4,47.78290534]
[1741637283550,227.7522,120.45,120.4,192.27275112]
[1741637283862,239.9122,120.45,120.4,192.27275112]
[1741637284063,232.44,120.45,120.41,47.78290534]
[1741637284258,220.28,120.45,120.41,47.78290534]
[1741637284454,275.53500534,120.45,120.4,183.96725112]
[1741637284660,220.28,120.45,120.4,192.27265112]
[1741637284855,220.28,120.45,120.42,47.78290534]
[1741637285055,0.03,120.48,120.45,136.18434578]
[1741637285268,0.03,120.48,120.47,47.78290534]
[1741637285470,0.03,120.48,120.47,129.96722848]
[1741637285765,0.03,120.48,120.47,138.26802848]
[1741637286651,0.03,120.48,120.47,81.9]
[1741637286977,0.03,120.48,120.47,138.26802848]
[1741637287772,0.03,120.48,120.47,156.91767734]
[1741637288167,0.03,120.49,120.48,20.933972]
[1741637288361,232.25,120.58,120.54,47.78290534]
[1741637288560,232.25,120.58,120.54,183.96725112]
[1741637288880,232.25,120.58,120.54,136.18434578]
[1741637289064,232.25,120.58,120.54,183.96725112]
[1741637289270,47.78290534,120.57,120.54,136.18434578]
[1741637289804,55.24800534,120.56,120.54,136.18434578]
[1741637289977,47.78290534,120.55,120.5,47.78290534]
[1741637290177,47.95933942,120.55,120.5,136.18434578]
[1741637290557,0.17643408,120.55,120.51,47.78290534]
[1741637290759,59.92290534,120.54,120.5,136.18434578]
[1741637291080,47.78290534,120.53,120.5,136.18434578]
[1741637291289,12.14,120.54,120.5,136.18434578]
[1741637291490,59.92290534,120.54,120.5,136.18434578]
[1741637292165,7.467,120.53,120.5,136.18434578]
[1741637292362,7.467,120.53,120.5,183.96725112]
[1741637293165,220.0,120.54,120.52,47.78290534]
[1741637293360,0.17643408,120.55,120.54,136.46866892]
[1741637293572,0.15019346,120.56,120.55,18.64964886]
[1741637293767,0.15019346,120.56,120.55,148.3325542]
[1741637293970,0.15019346,120.56,120.55,148.61687734]
[1741637294177,0.15019346,120.56,120.55,156.91217734]
[1741637294492,0.15019346,120.56,120.55,133.81163556]
[1741637294657,0.15019346,120.56,120.55,218.08434578]
[1741637294861,0.15019346,120.56,120.55,136.18434578]
[1741637295301,0.15019346,120.56,120.55,183.96725112]
[1741637295471,0.15019346,120.56,120.55,136.18434578]
[1741637296289,55.3981988,120.56,120.5,81.9]
[1741637296494,20.0,120.51,120.5,219.4]
[1741637296693,20.0,120.48,120.45,137.5]
[1741637296887,67.78290534,120.48,120.45,137.5]
[1741637297192,47.78290534,120.47,120.45,137.5]
[1741637297489,67.78290534,120.46,120.42,137.5]
[1741637297685,12.12,120.45,120.42,137.5]
[1741637298268,12.12,120.45,120.42,208.74793302]
[1741637298477,12.12,120.45,120.43,71.24793302]
[1741637299188,12.12,120.45,120.42,208.74793302]
[1741637299676,12.12,120.45,120.43,71.24793302]
[1741637299877,12.12,120.45,120.42,208.74793302]
[1741637300085,12.12,120.45,120.42,217.05203302]
[1741637300388,12.12,120.45,120.42,208.74793302]
[1741637300686,20.0,120.48,120.43,71.24793302]
[1741637300882,103.34793302,120.48,120.45,137.5]
[1741637301187,32.1,120.48,120.45,137.5]
[1741637301487,103.34793302,120.48,120.45,137.5]
[1741637301982,71.24793302,120.47,120.45,137.5]
[1741637302183,71.24793302,120.5,120.45,137.5]
[1741637302489,12.1,120.49,120.45,137.5]
[1741637302988,12.1,120.49,120.45,217.05003302]
[1741637303188,12.1,120.49,120.45,208.74793302]
[1741637303369,291.12793302,120.52,120.47,71.24793302]
[1741637303570,12.1,120.51,120.46,71.24793302]
[1741637303785,12.1,120.51,120.46,208.74793302]
[1741637304088,12.1,120.51,120.49,8.2994]
[1741637304269,219.88,120.52,120.5,71.24793302]
[1741637304992,219.88,120.52,120.49,290.64793302]
[1741637305680,291.12793302,120.52,120.49,219.4]
[1741637306079,219.88,120.52,120.49,219.4]
[1741637306385,83.49812648,120.56,120.53,137.5]
[1741637306575,71.24793302,120.54,120.53,137.5]
[1741637306779,89.89758188,120.54,120.53,137.5]
[1741637307787,161.42983804,120.54,120.53,137.5]
[1741637308289,161.42983804,120.54,120.49,137.5]
[1741637308290,0.14216157,120.53,120.49,137.5]
[1741637308587,71.24793302,120.51,120.46,221.15782675]
[1741637308891,96.53438188,120.54,120.46,137.5]
[1741637308892,83.34793302,120.5,120.46,137.5]
[1741637309580,12.1,120.5,120.46,217.04943302]
[1741637309884,71.24793302,120.49,120.46,137.5]
[1741637310088,0.1817314,120.47,120.46,137.5]
[1741637310271,0.1817314,120.47,120.46,145.8015]
[1741637310685,0.1817314,120.47,120.45,8.3019]
[1741637310893,0.1817314,120.47,120.44,4.10355149]
[1741637311064,0.1817314,120.47,120.44,8.3026]
[1741637311268,0.1817314,120.47,120.44,145.8026]
[1741637311471,0.1817314,120.47,120.44,137.5]
[1741637312394,71.42966442,120.47,120.45,0.063]
[1741637312771,0.1817314,120.47,120.45,0.063]
[1741637313188,0.1817314,120.47,120.45,208.81093302]
[1741637313889,0.1817314,120.47,120.45,137.563]
[1741637314492,0.1817314,120.47,120.45,145.8648]
[1741637314692,0.1817314,120.47,120.45,217.11273302]
[1741637315073,0.1817314,120.47,120.46,71.24793302]
[1741637315490,0.1817314,120.47,120.45,145.8648]
[1741637316071,0.1817314,120.47,120.45,137.563]
[1741637316278,0.1817314,120.47,120.45,145.8649]
[1741637317179,0.1817314,120.47,120.45,137.563]
[1741637317975,71.42966442,120.47,120.45,137.563]
[1741637318292,54.32289423,120.47,120.45,137.563]
[1741637318492,47.68229423,120.47,120.45,137.563]
[1741637319593,54.32309423,120.47,120.45,137.563]
[1741637320992,47.50056283,120.46,120.45,137.563]
[1741637321171,47.50056283,120.46,120.45,0.063]
[1741637321687,66.29237326,120.46,120.45,0.063]
[1741637321890,66.43453483,120.46,120.45,0.063]
[1741637322776,73.07573483,120.46,120.45,0.063]
[1741637325795,18.79181043,120.45,120.44,0.063]
[1741637325995,66.43453483,120.45,120.44,0.063]
[1741637326373,18.79181043,120.41,120.38,137.5]
[1741637326573,59.58056283,120.4,120.38,137.5]
[1741637326988,274.12556283,120.39,120.37,137.563]
[1741637327393,47.50056283,120.38,120.37,137.563]
[1741637327694,66.29237326,120.38,120.37,0.063]
[1741637328905,72.93797326,120.38,120.37,0.063]
[1741637329810,72.79581169,120.38,120.37,0.063]
[1741637330008,84.99797326,120.38,120.37,0.063]
[1741637330207,85.15388041,120.38,120.37,0.063]
[1741637332508,85.29604198,120.38,120.37,0.063]
[1741637332886,136.32200481,120.38,120.37,0.0001]
[1741637333187,18.79181043,120.33,120.32,0.063]
[1741637333395,66.29237326,120.33,120.32,0.063]
[1741637334510,66.43453483,120.33,120.32,0.063]
[1741637334682,66.43453483,120.33,120.27,137.5]
[1741637334683,20.0,120.3,120.27,137.5]
[1741637334888,47.50056283,120.28,120.24,0.063]
[1741637335090,47.50056283,120.27,120.24,137.563]
[1741637335300,47.50056283,120.28,120.24,137.563]
[1741637335605,54.15176283,120.28,120.24,137.563]
[1741637335797,47.50056283,120.27,120.24,137.563]
[1741637336191,6.6512,120.28,120.24,137.563]
[1741637336391,54.15176283,120.28,120.24,137.563]
[1741637337104,47.50056283,120.27,120.24,137.563]
[1741637337321,47.50056283,120.26,120.24,0.063]
[1741637337806,6.6512,120.28,120.24,0.063]
[1741637338104,54.15176283,120.28,120.24,137.563]
[1741637338309,47.50056283,120.27,120.24,137.563]
[1741637338689,47.50056283,120.25,120.24,0.063]
[1741637338889,67.50056283,120.25,120.24,0.063]
[1741637339107,20.0,120.25,120.24,0.063]
[1741637339407,6.6513,120.28,120.24,137.563]
[1741637339612,20.0,120.25,120.24,0.063]
[1741637339910,20.0,120.25,120.24,137.563]
[1741637340995,86.43453483,120.25,120.24,137.563]
[1741637341194,86.43453483,120.25,120.24,0.063]
[1741637341195,93.08733483,120.25,120.24,0.063]
[1741637341408,86.43453483,120.25,120.24,0.063]
[1741637341623,93.08733483,120.25,120.24,0.063]
[1741637341992,86.43453483,120.25,120.24,0.063]
[1741637342608,93.08733483,120.25,120.24,0.063]
[1741637344891,86.29237326,120.25,120.24,0.063]
[1741637345308,92.94517326,120.25,120.24,0.063]
[1741637345697,93.08733483,120.25,120.24,0.063]
[1741637346709,38.79181043,120.25,120.24,0.063]
[1741637347389,220.06,120.29,120.24,0.063]
[1741637347592,20.0,120.25,120.24,0.063]
[1741637347796,220.06,120.29,120.24,191.65236283]
[1741637348093,232.12,120.29,120.27,47.50056283]
[1741637348301,232.12,120.29,120.28,47.50056283]
[1741637348692,232.12,120.29,120.27,137.5]
[1741637350910,232.29042526,120.29,120.27,145.8145]
[1741637351122,232.29042526,120.29,120.27,137.5]
[1741637351714,220.23042526,120.29,120.27,137.5]
[1741637351916,12.04,120.28,120.27,137.5]
[1741637352614,20.14216157,120.25,120.24,0.063]
[1741637352805,86.29237326,120.25,120.24,0.063]
[1741637353719,20.0,120.25,120.24,0.063]
[1741637354107,252.32,120.25,120.24,0.063]
[1741637354302,325.40733483,120.25,120.24,0.063]
[1741637355216,93.08733483,120.25,120.24,0.063]
[1741637355532,325.40733483,120.25,120.24,0.063]
[1741637356924,325.40733483,120.25,120.18,1.5113]
[1741637356925,18.933972,120.24,120.18,137.5]
[1741637357217,47.50056283,120.2,120.18,137.5]
[1741637357422,12.04,120.19,120.18,137.5]
[1741637359606,18.79181043,120.18,120.16,0.063]
[1741637359801,66.29237326,120.18,120.16,0.063]
[1741637360001,18.79181043,120.18,120.16,0.063]
[1741637360500,66.29237326,120.18,120.16,0.063]
[1741637360824,18.79181043,120.18,120.16,137.563]
[1741637361017,66.19666283,120.19,120.16,137.563]
[1741637361210,12.04,120.19,120.16,137.563]
[1741637361533,66.19686283,120.19,120.16,137.563]
[1741637361729,66.29237326,120.17,120.16,0.063]
[1741637363621,12.04,120.19,120.16,137.563]
[1741637364143,47.50056283,120.18,120.16,137.563]
[1741637364939,86.29237326,120.17,120.16,0.063]
[1741637365302,306.69237326,120.17,120.16,0.063]
[1741637365503,259.19181043,120.17,120.16,0.063]
[1741637366003,220.4,120.17,120.16,0.063]
[1741637366198,220.4,120.17,120.16,137.563]
[1741637366404,220.4,120.17,120.16,185.06356283]
[1741637367536,220.4,120.17,120.16,193.38576283]
[1741637367924,220.4,120.17,120.16,145.8852]
[1741637368441,220.4,120.17,120.16,137.563]
[1741637369314,220.4,120.17,120.16,145.8852]
[1741637370134,220.56421544,120.17,120.16,145.8852]
[1741637370509,220.56421544,120.17,120.16,137.563]
[1741637371211,286.99875027,120.17,120.16,0.063]
[1741637372230,286.8565887,120.17,120.16,0.063]
[1741637372730,239.35602587,120.17,120.16,0.063]
[1741637372905,286.8565887,120.17,120.16,0.063]
[1741637373108,293.65595027,120.17,120.16,0.063]
[1741637374110,286.99875027,120.17,120.16,0.063]
[1741637374920,293.65595027,120.17,120.16,0.063]
[1741637377930,300.12105027,120.17,120.16,0.063]
[1741637378509,20.28432314,120.13,120.11,0.063]
[1741637378847,78.45453483,120.12,120.11,0.063]
[1741637379221,12.02,120.12,120.11,0.063]
[1741637381333,232.52,120.12,120.11,0.063]
[1741637381720,232.52,120.12,120.11,137.563]
[1741637381927,232.52,120.12,120.11,193.38926283]
[1741637382135,220.5,120.12,120.11,199.39156283]
[1741637382940,232.5,120.16,120.11,220.20576283]
[1741637383240,232.5,120.16,120.14,47.50056283]
[1741637383418,232.5,120.16,120.14,185.00056283]
[1741637384043,0.16421544,120.17,120.16,137.5]
[1741637384340,0.16484339,120.18,120.17,6.84992314]
[1741637384546,0.16570149,120.22,120.2,20.0]
[1741637384743,5.639e-05,120.21,120.2,67.50056283]
[1741637385452,5.639e-05,120.21,120.2,149.40056283]
[1741637385740,5.639e-05,120.21,120.2,266.90056283]
[1741637385939,5.639e-05,120.21,120.2,275.21996283]
[1741637386748,5.639e-05,120.21,120.2,137.5]
[1741637386949,12.00005639,120.21,120.2,137.5]
[1741637387823,12.00005639,120.21,120.2,193.31996283]
[1741637389147,12.0,120.21,120.2,193.31996283]
[1741637389353,0.03,120.24,120.22,137.5]
[1741637389634,0.03,120.24,120.23,47.50056283]
[1741637389814,0.03,120.24,120.23,185.00056283]
[1741637390011,0.19693389,120.24,120.23,185.00056283]
[1741637390233,0.19693389,120.24,120.23,193.31786283]
[1741637392151,0.17510709,120.27,120.26,20.0]
[1741637392327,0.17510709,120.27,120.26,47.50056283]
[1741637393525,0.17510709,120.27,120.26,20.0]
[1741637393849,0.17510709,120.27,120.24,6.0242]
[1741637394150,0.17510709,120.27,120.26,55.81586283]
[1741637397346,0.16428347,120.28,120.27,184.82545574]
[1741637397946,0.16428347,120.28,120.27,137.32489291]
[1741637398125,6.81538347,120.28,120.27,137.32489291]
[1741637398925,6.81538347,120.28,120.24,184.82545574]
[1741637398926,25.74935547,120.28,120.24,184.82545574]
[1741637399127,47.6427244,120.25,120.21,137.32489291]
[1741637399335,11.96,120.24,120.21,137.32489291]
[1741637399642,220.32,120.23,120.21,137.32489291]
[1741637399847,220.32,120.23,120.21,184.82545574]
[1741637400050,220.32,120.23,120.22,47.50056283]
[1741637400850,220.32,120.23,120.22,55.81856283]
[1741637402647,12.12428347,120.28,120.23,137.32489291]
[1741637402831,12.12428347,120.28,120.27,47.50056283]
[1741637403038,30.9160939,120.28,120.27,137.32489291]
[1741637403632,12.12428347,120.28,120.27,137.32489291]
[1741637403833,18.77538347,120.28,120.27,137.32489291]
[1741637404033,12.12428347,120.28,120.27,137.32489291]
[1741637404866,12.12428347,120.28,120.27,193.14005574]
[1741637405358,12.12428347,120.28,120.27,137.32489291]
[1741637405843,12.12428347,120.28,120.27,145.63949291]
[1741637406059,12.12428347,120.28,120.27,137.32489291]
[1741637406455,12.12428347,120.28,120.27,145.63949291]
[1741637406657,12.12428347,120.28,120.27,137.32489291]
[1741637407250,12.12428347,120.28,120.27,145.63949291]
[1741637407567,0.16428347,120.28,120.27,193.14005574]
[1741637407948,0.16428347,120.28,120.27,137.32489291]
[1741637408355,73.10775673,120.28,120.27,137.32489291]
[1741637408672,73.10775673,120.28,120.23,137.32489291]
[1741637408673,25.44511043,120.24,120.23,137.32489291]
[1741637408863,18.79181043,120.23,120.2,137.35489291]
[1741637409169,66.29237326,120.23,120.2,137.35489291]
[1741637409463,18.5933,120.24,120.22,0.03]
[1741637409464,66.09396283,120.24,120.22,0.03]
[1741637410046,0.16941114,120.23,120.22,0.03]
[1741637410662,47.66997397,120.23,120.22,0.03]
[1741637410870,54.32387397,120.23,120.22,0.03]
[1741637411164,6.82331114,120.23,120.22,0.03]
[1741637411366,73.1156844,120.23,120.22,0.03]
[1741637411955,66.4617844,120.23,120.22,0.03]
[1741637412766,73.1156844,120.23,120.22,0.03]
[1741637413266,73.25784597,120.23,120.22,0.03]
[1741637413465,66.4617844,120.23,120.22,0.03]
[1741637413855,73.1156844,120.23,120.22,0.03]
[1741637414067,66.4617844,120.23,120.22,0.03]
[1741637414450,18.96122157,120.23,120.22,0.03]
[1741637414645,12.10941114,120.23,120.22,0.03]
[1741637414949,0.16941114,120.23,120.22,184.85545574]
[1741637415747,0.16261015,120.24,120.23,143.81958177]
[1741637415954,0.16261015,120.24,120.23,200.88458587]
[1741637416169,0.16261015,120.24,120.23,199.6374446]
[1741637416365,1.015e-05,120.24,120.23,329.32233057]
[1741637416973,8.278e-05,120.25,120.24,0.28432314]
[1741637417151,0.01615071,120.27,120.26,20.0]
[1741637417352,0.01615071,120.27,120.26,149.40056283]
[1741637417954,0.01615071,120.27,120.26,137.71586283]
[1741637419666,0.01615071,120.27,120.26,81.9]
[1741637419856,0.01615071,120.27,120.26,227.37078177]
[1741637420056,0.01615071,120.27,120.26,274.8713446]
[1741637421556,0.1771427,120.3,120.29,136.75127386]
[1741637421871,0.1771427,120.3,120.29,184.25183669]
[1741637422063,0.1771427,120.3,120.29,192.56503669]
[1741637422257,0.1771427,120.3,120.29,274.46503669]
[1741637423978,0.19415374,120.32,120.31,20.0]
[1741637424280,0.19415374,120.32,120.31,67.50056283]
[1741637424451,5.374e-05,120.32,120.31,67.50056283]
[1741637425581,5.374e-05,120.32,120.31,20.0]
[1741637425757,5.374e-05,120.32,120.31,67.50056283]
[1741637426176,5.374e-05,120.32,120.31,75.81236283]
[1741637426563,5.374e-05,120.32,120.31,157.99668597]
[1741637426758,5.374e-05,120.32,120.31,176.64633483]
[1741637426977,220.29,120.37,120.32,18.933972]
[1741637427179,11.92,120.39,120.37,136.72127386]
[1741637427365,226.9278,120.4,120.37,136.72127386]
[1741637427565,11.92,120.39,120.37,136.72127386]
[1741637428264,47.50056283,120.38,120.36,136.72127386]
[1741637428480,18.64964886,120.38,120.36,136.72127386]
[1741637428674,11.92,120.39,120.36,145.02957386]
[1741637428984,11.9,120.38,120.36,192.53013669]